Workbook

Sheet Übersicht
B4: Lindab GmbH
B5: Carl-Benz-Weg 18
B6: 22941 Bargteheide
B7: Tel. 04532-28590
B8: Fax: 04532-5666
B9: email: lindab@lindab.de
D12: Lindab Preisliste 2016-2017 + TZ2
B15: Mit Hilfe dieser Datei möchten wir Ihnen, ergänzend zur Preisliste 2016-2017 in gedruckter Form oder als PDF, die Möglichkeit bieten, Ihre Einkaufskonditionen bei der
B16: Preisfindung mit zu berücksichtigen und so schneller Ihren Einkaufspreis für das ausgewählte Produkt zu erfahren.
B18: Zu Beginn müssen Sie einmalig Ihre Konditionen im Programm hinterlegen. Dazu wechseln Sie zum Tabellenblatt "Konditionen" und tragen dort die vereinbarten
B19: Rabatte ein. | C19: Zum Tabellenblatt Konditionen wechseln
B21: Im Tabellenblatt 2016-2017 wird Ihnen dann zu jedem Artikel Ihr Einkaufspreis angezeigt. | G21: Zur Preisliste 2016-2017
B23: Mit Hilfe der Filter können Sie die Artikel nach Kategorie, oder Artikelkurzbezeichnung filtern, oder nutzen Sie die Suche-Funktion von Excel, wenn Ihnen
B24: die Artikelnummer bekannt ist.
B26: Schaltfläche* "Zur Bestelliste hinzufügen": Möchten Sie einen Artikel auswählen, markieren Sie bitte irgendeine Zelle in der Artikelzeile und drücken Sie die
C27: Schaltfläche, sie müssen nur noch die gewünschte Stückzahl angeben und der Artikel wird in die Bestellliste" übernommen.
C28: Sie können dieses Tabellenblatt direkt per Email als Bestellung zu Lindab senden. * | H28: zur Bestellliste wechseln
B40: * Um die Schaltflächen benutzen zu können, müssen die Sicherheitseinstellungen von Excel die Ausführung von Makros zulassen. Sie können dies über
B41: >Extras/Makro/Sicherheit/Sicherheitsstufe< "mittel" oder "niedrig" (nicht empfohlen) anpassen.

Sheet Konditionen
B10: Bitte tragen Sie in die nachfolgende Tabelle die Rabatte gemäß Ihrer aktuellen Konditionsbestätigung ein.
B12: Im Tabellenblatt "2016-2017" werden Ihnen dann zu jedem Artikel Ihre Netto-Einkaufspreise direkt angezeigt.
B14: zur 2016-2017 | C14: zurück zur Übersicht
B17: Preisgruppe | C17: Preisgruppenbezeichnung | D17: Rabatt gesamt
B18: 10 | C18: Rohre | D18: 0
B19: 11 | C19: Flex | D19: 0
B20: 30 | C20: LindabSafe Formteile | D20: 0
B21: 31 | C21: Schalldämpfer flexibel | D21: 0
B22: 32 | C22: Klappen | D22: 0
B23: 35 | C23: Lindab Transfer | D23: 0
B24: 37 | C24: Filter | D24: 0
B25: 53 | C25: Dachhauben | D25: 0
B26: 60 | C26: Edelstahl | D26: 0
B27: 65 | C27: Lindab Isol | D27: 0
B28: 70 | C28: Lindab Comfort Luftauslässe | D28: 0
B29: 80 | C29: Brandschutz | D29: 0
B30: 90 | C30: Dienstleistungen & Zubehör | D30: 0
B31: 5.PG01 | C31: Geba Preisgruppe 01 | D31: 0
B32: 5.PG05 | C32: Geba Preisgruppe 05 | D32: 0
B33: 5.PG11 | C33: Geba Preisgruppe 11 | D33: 0
B34: 7.ALLG | C34: Systemair Allgemein | D34: 0
B35: 7.AW | C35: Systemair AW Ventilatoren | D35: 0
B36: 7.K | C36: Systemair K Ventilatoren | D36: 0
B37: 9.BS | C37: Strulik Brandschutz | D37: 0
B38: 10.ALLG | C38: Gripple Allgemein | D38: 0
B39: 13.ALLG | C39: Grada Allgemein | D39: 0
B40: 14.MS | C40: METU System | D40: 0
B41: 14.REV | C41: METU Revisionsdeckel | D41: 0
B42: 16.ALLG | C42: Dektite Allgemein | D42: 0
B43: 17.ALLG | C43: Beck Allgemein | D43: 0
B44: 18.ALLG | C44: Östberg Allgemein | D44: 0
B45: 17.EFFI | C45: Beck EffiTech Stecksystem | D45: 0
B46: 20.ALLG | C46: ALRE IT Allgemein | D46: 0
B47: 42.ALLG | C47: Masterflex Allgemein | D47: 0
B48: 43.NETT | C48: Schweißdraht Allgemein | D48: 0
C50: Ihre Daten
C51: Kundennr.:
C52: Name:
C53: Ansprechpartner
C54: Str.:
C55: PLZ/Ort:
C56: Tel.:
C57: Fax:

Sheet 2016-2017
C3: Lindab Preisliste 2016-2017 + TZ2
F6: wechseln zu: | G6: Übersicht
G7: Konditionen
G8: Bestellliste
A11: Kategorie | B11: Kurzbezeichnung | C11: Artikelnummer | D11: Beschreibung 1 | E11: Beschreibung 2 | F11: Preisgruppe | G11: Preis brutto | H11: Preis netto
A12: Montagezubehör | B12: ABN4X10 | C12: ABN4X10 | D12: Alu-Blindniete ABN 4 X 10 | E12: (für Dicke 0-7,5) VPE=500 | F12: 90 | G12: 12.15 | H12: =G12*(1-VLOOKUP(F12,Konditionen!$B:$D,3,0)) -> 12.15
A13: Rohre und Formteile | B13: ABUV2A | C13: ABUV2A100 | D13: Ausblasbogen ABU V2A 100 | E13: Edelstahl W.Nr. 1.4301 | F13: 60 | G13: 341.16 | H13: =G13*(1-VLOOKUP(F13,Konditionen!$B:$D,3,0)) -> 341.16
A14: Rohre und Formteile | B14: ABUV2A | C14: ABUV2A112 | D14: Ausblasbogen ABU V2A 112 | E14: Edelstahl W. Nr. 1.4301 | F14: 60 | G14: 353.81 | H14: =G14*(1-VLOOKUP(F14,Konditionen!$B:$D,3,0)) -> 353.81
A15: Rohre und Formteile | B15: ABUV2A | C15: ABUV2A125 | D15: Ausblasbogen ABU V2A 125 | E15: Edelstahl W. Nr. 1.4301 | F15: 60 | G15: 353.81 | H15: =G15*(1-VLOOKUP(F15,Konditionen!$B:$D,3,0)) -> 353.81
A16: Rohre und Formteile | B16: ABUV2A | C16: ABUV2A140 | D16: Ausblasbogen ABU V2A 140 | E16: Edelstahl W. Nr. 1.4301 | F16: 60 | G16: 390.02 | H16: =G16*(1-VLOOKUP(F16,Konditionen!$B:$D,3,0)) -> 390.02
A17: Rohre und Formteile | B17: ABUV2A | C17: ABUV2A150 | D17: Ausblasbogen ABU V2A 150 | E17: Edelstahl W. Nr. 1.4301 | F17: 60 | G17: 390.02 | H17: =G17*(1-VLOOKUP(F17,Konditionen!$B:$D,3,0)) -> 390.02
A18: Rohre und Formteile | B18: ABUV2A | C18: ABUV2A160 | D18: Ausblasbogen ABU V2A 160 | E18: Edelstahl W. Nr. 1.4301 | F18: 60 | G18: 390.02 | H18: =G18*(1-VLOOKUP(F18,Konditionen!$B:$D,3,0)) -> 390.02
A19: Rohre und Formteile | B19: ABUV2A | C19: ABUV2A180 | D19: Ausblasbogen ABU V2A 180 | E19: Edelstahl W. Nr. 1.4301 | F19: 60 | G19: 448 | H19: =G19*(1-VLOOKUP(F19,Konditionen!$B:$D,3,0)) -> 448
A20: Rohre und Formteile | B20: ABUV2A | C20: ABUV2A200 | D20: Ausblasbogen ABU V2A 200 | E20: Edelstahl W. Nr. 1.4301 | F20: 60 | G20: 448 | H20: =G20*(1-VLOOKUP(F20,Konditionen!$B:$D,3,0)) -> 448
A21: Rohre und Formteile | B21: ABUV2A | C21: ABUV2A224 | D21: Ausblasbogen ABU V2A 224 | E21: Edelstahl W. Nr. 1.4301 | F21: 60 | G21: 575.22 | H21: =G21*(1-VLOOKUP(F21,Konditionen!$B:$D,3,0)) -> 575.22
A22: Rohre und Formteile | B22: ABUV2A | C22: ABUV2A250 | D22: Ausblasbogen ABU V2A 250 | E22: Edelstahl W. Nr. 1.4301 | F22: 60 | G22: 575.22 | H22: =G22*(1-VLOOKUP(F22,Konditionen!$B:$D,3,0)) -> 575.22
A23: Rohre und Formteile | B23: ABUV2A | C23: ABUV2A280 | D23: Ausblasbogen ABU V2A 280 | E23: Edelstahl W.Nr. 1.4301 | F23: 60 | G23: 726.72 | H23: =G23*(1-VLOOKUP(F23,Konditionen!$B:$D,3,0)) -> 726.72
A24: Rohre und Formteile | B24: ABUV2A | C24: ABUV2A300 | D24: Ausblasbogen ABU V2A 300 | E24: Edelstahl W. Nr. 1.4301 | F24: 60 | G24: 726.72 | H24: =G24*(1-VLOOKUP(F24,Konditionen!$B:$D,3,0)) -> 726.72
A25: Rohre und Formteile | B25: ABUV2A | C25: ABUV2A315 | D25: Ausblasbogen ABU V2A 315 | E25: Edelstahl W. Nr. 1.4301 | F25: 60 | G25: 824.33 | H25: =G25*(1-VLOOKUP(F25,Konditionen!$B:$D,3,0)) -> 824.33
A26: Rohre und Formteile | B26: ABUV2A | C26: ABUV2A355 | D26: Ausblasbogen ABU V2A 355 | E26: Edelstahl W. Nr. 1.4301 | F26: 60 | G26: 908.77 | H26: =G26*(1-VLOOKUP(F26,Konditionen!$B:$D,3,0)) -> 908.77
A27: Rohre und Formteile | B27: ABUV2A | C27: ABUV2A400 | D27: Ausblasbogen ABU V2A 400 | E27: Edelstahl W. Nr. 1.4301 | F27: 60 | G27: 1060.6 | H27: =G27*(1-VLOOKUP(F27,Konditionen!$B:$D,3,0)) -> 1060.6
A28: Rohre und Formteile | B28: ABUV2A | C28: ABUV2A450 | D28: Ausblasbogen ABU V2A 450 | E28: Edelstahl W. Nr. 1.4301 | F28: 60 | G28: 1225.17 | H28: =G28*(1-VLOOKUP(F28,Konditionen!$B:$D,3,0)) -> 1225.17
A29: Rohre und Formteile | B29: ABUV2A | C29: ABUV2A500 | D29: Ausblasbogen ABU V2A 500 | E29: Edelstahl W. Nr. 1.4301 | F29: 60 | G29: 1439.6 | H29: =G29*(1-VLOOKUP(F29,Konditionen!$B:$D,3,0)) -> 1439.6
A30: Rohre und Formteile | B30: ABUV2A | C30: ABUV2A560 | D30: Ausblasbogen ABU V2A 560 | E30: Edelstahl W. Nr. 1.4301 | F30: 60 | G30: 1797.77 | H30: =G30*(1-VLOOKUP(F30,Konditionen!$B:$D,3,0)) -> 1797.77
A31: Rohre und Formteile | B31: ABUV2A | C31: ABUV2A600 | D31: Ausblasbogen ABU V2A 600 | E31: Edelstahl W. Nr. 1.4301 | F31: 60 | G31: 2200.49 | H31: =G31*(1-VLOOKUP(F31,Konditionen!$B:$D,3,0)) -> 2200.49
A32: Rohre und Formteile | B32: ABUV2A | C32: ABUV2A630 | D32: Ausblasbogen ABU V2A 630 | E32: Edelstahl W. Nr. 1.4301 | F32: 60 | G32: 2507.75 | H32: =G32*(1-VLOOKUP(F32,Konditionen!$B:$D,3,0)) -> 2507.75
A33: Rohre und Formteile | B33: ABUV2A | C33: ABUV2A710 | D33: Ausblasbogen ABU V2A 710 | E33: Edelstahl W. Nr. 1.4301 | F33: 60 | G33: 3090.06 | H33: =G33*(1-VLOOKUP(F33,Konditionen!$B:$D,3,0)) -> 3090.06
A34: Rohre und Formteile | B34: ABUV2A | C34: ABUV2A800 | D34: Ausblasbogen ABU V2A 800 | E34: Edelstahl W. Nr. 1.4301 | F34: 60 | G34: 3651.54 | H34: =G34*(1-VLOOKUP(F34,Konditionen!$B:$D,3,0)) -> 3651.54
A35: Rohre und Formteile | B35: ABUV2A | C35: ABUV2A900 | D35: Ausblasbogen ABU V2A 900 | E35: Edelstahl W. Nr. 1.4301 | F35: 60 | G35: 4531.24 | H35: =G35*(1-VLOOKUP(F35,Konditionen!$B:$D,3,0)) -> 4531.24
A36: Rohre und Formteile | B36: ABU | C36: ABU100 | D36: Ausblasbogen ABU 90 100 | F36: 53 | G36: 45.97 | H36: =G36*(1-VLOOKUP(F36,Konditionen!$B:$D,3,0)) -> 45.97
A37: Rohre und Formteile | B37: ABU | C37: ABU1000 | D37: Ausblasbogen ABFU 90 1000 | F37: 53 | G37: 1090.51 | H37: =G37*(1-VLOOKUP(F37,Konditionen!$B:$D,3,0)) -> 1090.51
A38: Rohre und Formteile | B38: ABU | C38: ABU1000135 | D38: Ausblasbogen ABFU 135 1000 | F38: 53 | G38: 1875.28 | H38: =G38*(1-VLOOKUP(F38,Konditionen!$B:$D,3,0)) -> 1875.28
A39: Rohre und Formteile | B39: ABU | C39: ABU112 | D39: Ausblasbogen ABU 90 112 | F39: 53 | G39: 54.15 | H39: =G39*(1-VLOOKUP(F39,Konditionen!$B:$D,3,0)) -> 54.15
A40: Rohre und Formteile | B40: ABU | C40: ABU1120 | D40: Ausblasbogen ABFU 90 1120 | F40: 53 | G40: 1380.71 | H40: =G40*(1-VLOOKUP(F40,Konditionen!$B:$D,3,0)) -> 1380.71
A41: Rohre und Formteile | B41: ABU | C41: ABU1120135 | D41: Ausblasbogen ABFU 135 1120 | F41: 53 | G41: 2383.8 | H41: =G41*(1-VLOOKUP(F41,Konditionen!$B:$D,3,0)) -> 2383.8
A42: Rohre und Formteile | B42: ABU | C42: ABU125 | D42: Ausblasbogen ABU 90 125 | F42: 53 | G42: 54.15 | H42: =G42*(1-VLOOKUP(F42,Konditionen!$B:$D,3,0)) -> 54.15
A43: Rohre und Formteile | B43: ABU | C43: ABU1250 | D43: Ausblasbogen ABFU 90 1250 | F43: 53 | G43: 1652.03 | H43: =G43*(1-VLOOKUP(F43,Konditionen!$B:$D,3,0)) -> 1652.03
A44: Rohre und Formteile | B44: ABU | C44: ABU1250135 | D44: Ausblasbogen ABFU 135 1250 | F44: 53 | G44: 2882.66 | H44: =G44*(1-VLOOKUP(F44,Konditionen!$B:$D,3,0)) -> 2882.66
A45: Rohre und Formteile | B45: ABU | C45: ABU140 | D45: Ausblasbogen ABU 90 140 | F45: 53 | G45: 61.39 | H45: =G45*(1-VLOOKUP(F45,Konditionen!$B:$D,3,0)) -> 61.39
A46: Rohre und Formteile | B46: ABU | C46: ABU150 | D46: Ausblasbogen ABU 90 150 | F46: 53 | G46: 61.39 | H46: =G46*(1-VLOOKUP(F46,Konditionen!$B:$D,3,0)) -> 61.39
A47: Rohre und Formteile | B47: ABU | C47: ABU150135 | D47: Ausblasbogen ABFU 135° 150 | F47: 53 | G47: 97.82 | H47: =G47*(1-VLOOKUP(F47,Konditionen!$B:$D,3,0)) -> 97.82
A48: Rohre und Formteile | B48: ABU | C48: ABU160 | D48: Ausblasbogen ABU 90 160 | F48: 53 | G48: 61.39 | H48: =G48*(1-VLOOKUP(F48,Konditionen!$B:$D,3,0)) -> 61.39
A49: Rohre und Formteile | B49: ABU | C49: ABU160135 | D49: Ausblasbogen ABFU 135° 160 | F49: 53 | G49: 97.82 | H49: =G49*(1-VLOOKUP(F49,Konditionen!$B:$D,3,0)) -> 97.82
A50: Rohre und Formteile | B50: ABU | C50: ABU180 | D50: Ausblasbogen ABU 90 180 | F50: 53 | G50: 74.41 | H50: =G50*(1-VLOOKUP(F50,Konditionen!$B:$D,3,0)) -> 74.41
A51: Rohre und Formteile | B51: ABU | C51: ABU180135 | D51: Ausblasbogen ABFU 135 180 | F51: 53 | G51: 115.34 | H51: =G51*(1-VLOOKUP(F51,Konditionen!$B:$D,3,0)) -> 115.34
A52: Rohre und Formteile | B52: ABU | C52: ABU200 | D52: Ausblasbogen ABU 90 200 | F52: 53 | G52: 74.41 | H52: =G52*(1-VLOOKUP(F52,Konditionen!$B:$D,3,0)) -> 74.41
A53: Rohre und Formteile | B53: ABU | C53: ABU200135 | D53: Ausblasbogen ABFU 135 200 | F53: 53 | G53: 115.34 | H53: =G53*(1-VLOOKUP(F53,Konditionen!$B:$D,3,0)) -> 115.34
A54: Rohre und Formteile | B54: ABU | C54: ABU224 | D54: Ausblasbogen ABFU 90 224 | F54: 53 | G54: 95.3 | H54: =G54*(1-VLOOKUP(F54,Konditionen!$B:$D,3,0)) -> 95.3
A55: Rohre und Formteile | B55: ABU | C55: ABU224135 | D55: Ausblasbogen ABFU 135 224 | F55: 53 | G55: 149.35 | H55: =G55*(1-VLOOKUP(F55,Konditionen!$B:$D,3,0)) -> 149.35
A56: Rohre und Formteile | B56: ABU | C56: ABU250 | D56: Ausblasbogen ABFU 90 250 | F56: 53 | G56: 95.3 | H56: =G56*(1-VLOOKUP(F56,Konditionen!$B:$D,3,0)) -> 95.3
A57: Rohre und Formteile | B57: ABU | C57: ABU250135 | D57: Ausblasbogen ABFU 135 250 | F57: 53 | G57: 149.35 | H57: =G57*(1-VLOOKUP(F57,Konditionen!$B:$D,3,0)) -> 149.35
A58: Rohre und Formteile | B58: ABU | C58: ABU280 | D58: Ausblasbogen ABFU 90 280 | F58: 53 | G58: 115.56 | H58: =G58*(1-VLOOKUP(F58,Konditionen!$B:$D,3,0)) -> 115.56
A59: Rohre und Formteile | B59: ABU | C59: ABU280135 | D59: Ausblasbogen ABFU 135 280 | F59: 53 | G59: 181.37 | H59: =G59*(1-VLOOKUP(F59,Konditionen!$B:$D,3,0)) -> 181.37
A60: Rohre und Formteile | B60: ABU | C60: ABU300 | D60: Ausblasbogen ABFU 90 300 | F60: 53 | G60: 115.56 | H60: =G60*(1-VLOOKUP(F60,Konditionen!$B:$D,3,0)) -> 115.56
A61: Rohre und Formteile | B61: ABU | C61: ABU300135 | D61: Ausblasbogen ABFU 135 300 | F61: 53 | G61: 181.37 | H61: =G61*(1-VLOOKUP(F61,Konditionen!$B:$D,3,0)) -> 181.37
A62: Rohre und Formteile | B62: ABU | C62: ABU315 | D62: Ausblasbogen ABFU 90 315 | F62: 53 | G62: 123.53 | H62: =G62*(1-VLOOKUP(F62,Konditionen!$B:$D,3,0)) -> 123.53
A63: Rohre und Formteile | B63: ABU | C63: ABU315135 | D63: Ausblasbogen ABFU 135 315 | F63: 53 | G63: 195.42 | H63: =G63*(1-VLOOKUP(F63,Konditionen!$B:$D,3,0)) -> 195.42
A64: Rohre und Formteile | B64: ABU | C64: ABU355 | D64: Ausblasbogen ABFU 90 355 | F64: 53 | G64: 143.06 | H64: =G64*(1-VLOOKUP(F64,Konditionen!$B:$D,3,0)) -> 143.06
A65: Rohre und Formteile | B65: ABU | C65: ABU355135 | D65: Ausblasbogen ABFU 135 355 | F65: 53 | G65: 219.57 | H65: =G65*(1-VLOOKUP(F65,Konditionen!$B:$D,3,0)) -> 219.57
A66: Rohre und Formteile | B66: ABU | C66: ABU400 | D66: Ausblasbogen ABFU 90 400 | F66: 53 | G66: 164.78 | H66: =G66*(1-VLOOKUP(F66,Konditionen!$B:$D,3,0)) -> 164.78
A67: Rohre und Formteile | B67: ABU | C67: ABU400135 | D67: Ausblasbogen ABFU 135° 400 | F67: 53 | G67: 248.12 | H67: =G67*(1-VLOOKUP(F67,Konditionen!$B:$D,3,0)) -> 248.12
A68: Rohre und Formteile | B68: ABU | C68: ABU450 | D68: Ausblasbogen ABFU 90 450 | F68: 53 | G68: 186.71 | H68: =G68*(1-VLOOKUP(F68,Konditionen!$B:$D,3,0)) -> 186.71
A69: Rohre und Formteile | B69: ABU | C69: ABU450135 | D69: Ausblasbogen ABFU 135 450 | F69: 53 | G69: 286.53 | H69: =G69*(1-VLOOKUP(F69,Konditionen!$B:$D,3,0)) -> 286.53
A70: Rohre und Formteile | B70: ABU | C70: ABU500 | D70: Ausblasbogen ABFU 90 500 | F70: 53 | G70: 210.44 | H70: =G70*(1-VLOOKUP(F70,Konditionen!$B:$D,3,0)) -> 210.44
A71: Rohre und Formteile | B71: ABU | C71: ABU500135 | D71: Ausblasbogen ABFU 135 500 | F71: 53 | G71: 343.94 | H71: =G71*(1-VLOOKUP(F71,Konditionen!$B:$D,3,0)) -> 343.94
A72: Rohre und Formteile | B72: ABU | C72: ABU560 | D72: Ausblasbogen ABFU 90 560 | F72: 53 | G72: 256.09 | H72: =G72*(1-VLOOKUP(F72,Konditionen!$B:$D,3,0)) -> 256.09
A73: Rohre und Formteile | B73: ABU | C73: ABU560135 | D73: Ausblasbogen ABFU 135 560 | F73: 53 | G73: 423.61 | H73: =G73*(1-VLOOKUP(F73,Konditionen!$B:$D,3,0)) -> 423.61
A74: Rohre und Formteile | B74: ABU | C74: ABU600 | D74: Ausblasbogen ABFU 90 600 | F74: 53 | G74: 291.25 | H74: =G74*(1-VLOOKUP(F74,Konditionen!$B:$D,3,0)) -> 291.25
A75: Rohre und Formteile | B75: ABU | C75: ABU600135 | D75: Ausblasbogen ABFU 135 600 | F75: 53 | G75: 499.07 | H75: =G75*(1-VLOOKUP(F75,Konditionen!$B:$D,3,0)) -> 499.07
A76: Rohre und Formteile | B76: ABU | C76: ABU630 | D76: Ausblasbogen ABFU 90 630 | F76: 53 | G76: 322.42 | H76: =G76*(1-VLOOKUP(F76,Konditionen!$B:$D,3,0)) -> 322.42
A77: Rohre und Formteile | B77: ABU | C77: ABU630135 | D77: Ausblasbogen ABFU 135 630 | F77: 53 | G77: 576.84 | H77: =G77*(1-VLOOKUP(F77,Konditionen!$B:$D,3,0)) -> 576.84
A78: Rohre und Formteile | B78: ABU | C78: ABU710 | D78: Ausblasbogen ABFU 90 710 | F78: 53 | G78: 458.03 | H78: =G78*(1-VLOOKUP(F78,Konditionen!$B:$D,3,0)) -> 458.03
A79: Rohre und Formteile | B79: ABU | C79: ABU710135 | D79: Ausblasbogen ABFU 135 710 | F79: 53 | G79: 774.06 | H79: =G79*(1-VLOOKUP(F79,Konditionen!$B:$D,3,0)) -> 774.06
A80: Rohre und Formteile | B80: ABU | C80: ABU80 | D80: Ausblasbogen ABU 90 80 | F80: 53 | G80: 41.77 | H80: =G80*(1-VLOOKUP(F80,Konditionen!$B:$D,3,0)) -> 41.77
A81: Rohre und Formteile | B81: ABU | C81: ABU800 | D81: Ausblasbogen ABFU 90 800 | F81: 53 | G81: 609.49 | H81: =G81*(1-VLOOKUP(F81,Konditionen!$B:$D,3,0)) -> 609.49
A82: Rohre und Formteile | B82: ABU | C82: ABU800135 | D82: Ausblasbogen ABFU 135 800 | F82: 53 | G82: 1004.55 | H82: =G82*(1-VLOOKUP(F82,Konditionen!$B:$D,3,0)) -> 1004.55
A83: Rohre und Formteile | B83: ABU | C83: ABU900 | D83: Ausblasbogen ABFU 90 900 | F83: 53 | G83: 826.85 | H83: =G83*(1-VLOOKUP(F83,Konditionen!$B:$D,3,0)) -> 826.85
A84: Rohre und Formteile | B84: ABU | C84: ABU900135 | D84: Ausblasbogen ABFU 135 900 | F84: 53 | G84: 1436.24 | H84: =G84*(1-VLOOKUP(F84,Konditionen!$B:$D,3,0)) -> 1436.24
A85: Rohre und Formteile | B85: AEWT | C85: AEWT160LNRLACK | D85: Aussenlufteinheit AEWT 160.280.1180 | E85: Ausführung LNR lackiert RAL ???? | F85: 90 | G85: 562.28 | H85: =G85*(1-VLOOKUP(F85,Konditionen!$B:$D,3,0)) -> 562.28
A86: Rohre und Formteile | B86: AEWT | C86: AEWT160LNRVZ | D86: Aussenlufteinheit AEWT 160.280.1180 | E86: Ausführung LNR verzinkt | F86: 90 | G86: 337.42 | H86: =G86*(1-VLOOKUP(F86,Konditionen!$B:$D,3,0)) -> 337.42
A87: Rohre und Formteile | B87: AEWT | C87: AEWT200LNRLACK | D87: Aussenlufteinheit AEWT 200.315.1250 | E87: Ausführung LNR lackiert RAL ???? | F87: 90 | G87: 724.51 | H87: =G87*(1-VLOOKUP(F87,Konditionen!$B:$D,3,0)) -> 724.51
A88: Rohre und Formteile | B88: AEWT | C88: AEWT200LNRVZ | D88: Aussenlufteinheit AEWT 200.315.1250 | E88: Ausführung LNR verzinkt | F88: 90 | G88: 434.72 | H88: =G88*(1-VLOOKUP(F88,Konditionen!$B:$D,3,0)) -> 434.72
A89: Rohre und Formteile | B89: AEWT | C89: AEWT250LNRLACK | D89: Aussenlufteinheit AEWT 250.400.1250 | E89: Ausführung LNR lackiert RAL ???? | F89: 90 | G89: 771.63 | H89: =G89*(1-VLOOKUP(F89,Konditionen!$B:$D,3,0)) -> 771.63
A90: Rohre und Formteile | B90: AEWT | C90: AEWT250LNRVZ | D90: Aussenlufteinheit AEWT 250.400.1250 | E90: Ausführung LNR verzinkt | F90: 90 | G90: 463.08 | H90: =G90*(1-VLOOKUP(F90,Konditionen!$B:$D,3,0)) -> 463.08
A91: Rohre und Formteile | B91: AEWT | C91: AEWT315LNRVZ | D91: Aussenlufteinheit AEWT 315.450.1790 | E91: Ausführung LNR verzinkt | F91: 90 | G91: 653.06 | H91: =G91*(1-VLOOKUP(F91,Konditionen!$B:$D,3,0)) -> 653.06
A92: Rohre und Formteile | B92: AEWT | C92: AEWT315SRLACK | D92: Aussenlufteinheit AEWT 315.450.1790 | E92: Ausführung SREN lackiert RAL ???? | F92: 90 | G92: 946.71 | H92: =G92*(1-VLOOKUP(F92,Konditionen!$B:$D,3,0)) -> 946.71
A93: Rohre und Formteile | B93: AEWT | C93: AEWT400LNRLACK | D93: Aussenlufteinheit AEWT 400.560.1870 | E93: Ausführung LNR lackiert RAL ???? | F93: 90 | G93: 1088.19 | H93: =G93*(1-VLOOKUP(F93,Konditionen!$B:$D,3,0)) -> 1088.19
A94: Rohre und Formteile | B94: AEWT | C94: AEWT400LNRVZ | D94: Aussenlufteinheit AEWT 400.560.1870 | E94: Ausführung LNR verzinkt | F94: 90 | G94: 755.16 | H94: =G94*(1-VLOOKUP(F94,Konditionen!$B:$D,3,0)) -> 755.16
A95: Rohre und Formteile | B95: AEWT | C95: AEWT400SRLACK | D95: Aussenlufteinheit AEWT 400.560.1870 | E95: Ausführung SREN lackiert RAL ???? | F95: 90 | G95: 1088.19 | H95: =G95*(1-VLOOKUP(F95,Konditionen!$B:$D,3,0)) -> 1088.19
A96: Rohre und Formteile | B96: AEWT | C96: AEWT400SRVZ | D96: Aussenlufteinheit AEWT 400.560.1870 | E96: Ausführung SREN verzinkt | F96: 90 | G96: 755.16 | H96: =G96*(1-VLOOKUP(F96,Konditionen!$B:$D,3,0)) -> 755.16
A97: Montagezubehör | B97: AFV2A | C97: AFV2A100 | D97: Rohrflansch AF 100 V2A** 1000 mm | F97: 14.MS | G97: 44.47 | H97: =G97*(1-VLOOKUP(F97,Konditionen!$B:$D,3,0)) -> 44.47
A98: Montagezubehör | B98: AFV2A | C98: AFV2A112 | D98: Rohrflansch AF 112 V2A 1120 mm | F98: 14.MS | G98: 95.12 | H98: =G98*(1-VLOOKUP(F98,Konditionen!$B:$D,3,0)) -> 95.12
A99: Montagezubehör | B99: AFV2A | C99: AFV2A125 | D99: Rohrflansch AF 125 V2A 1250 mm | F99: 14.MS | G99: 104.66 | H99: =G99*(1-VLOOKUP(F99,Konditionen!$B:$D,3,0)) -> 104.66
A100: Montagezubehör | B100: AFV2A | C100: AFV2A140 | D100: Rohrflansch AF 140 V2A 1400 mm | F100: 14.MS | G100: 115.63 | H100: =G100*(1-VLOOKUP(F100,Konditionen!$B:$D,3,0)) -> 115.63
A101: Montagezubehör | B101: AFV2A | C101: AFV2A160 | D101: Rohrflansch AF 160 V2A 1600 mm | F101: 14.MS | G101: 131.13 | H101: =G101*(1-VLOOKUP(F101,Konditionen!$B:$D,3,0)) -> 131.13
A102: Montagezubehör | B102: AFV2A | C102: AFV2A20 | D102: Rohrflansch AF 20 V2A 200 mm | F102: 14.MS | G102: 8.12 | H102: =G102*(1-VLOOKUP(F102,Konditionen!$B:$D,3,0)) -> 8.12
A103: Montagezubehör | B103: AFV2A | C103: AFV2A22 | D103: Rohrflansch AF 22 V2A 224 mm | F103: 14.MS | G103: 8.59 | H103: =G103*(1-VLOOKUP(F103,Konditionen!$B:$D,3,0)) -> 8.59
A104: Montagezubehör | B104: AFV2A | C104: AFV2A25 | D104: Rohrflansch AF 25 V2A 250 mm | F104: 14.MS | G104: 9.53 | H104: =G104*(1-VLOOKUP(F104,Konditionen!$B:$D,3,0)) -> 9.53
A105: Montagezubehör | B105: AFV2A | C105: AFV2A28 | D105: Rohrflansch AF 28 V2A 280 mm | F105: 14.MS | G105: 10.13 | H105: =G105*(1-VLOOKUP(F105,Konditionen!$B:$D,3,0)) -> 10.13
A106: Montagezubehör | B106: AFV2A | C106: AFV2A30 | D106: Rohrflansch AF 30 V2A 300 mm | F106: 14.MS | G106: 10.49 | H106: =G106*(1-VLOOKUP(F106,Konditionen!$B:$D,3,0)) -> 10.49
A107: Montagezubehör | B107: AFV2A | C107: AFV2A31 | D107: Rohrflansch AF 31 V2A 315 mm | F107: 14.MS | G107: 10.73 | H107: =G107*(1-VLOOKUP(F107,Konditionen!$B:$D,3,0)) -> 10.73
A108: Montagezubehör | B108: AFV2A | C108: AFV2A35 | D108: Rohrflansch AF 35 V2A 355 mm | F108: 14.MS | G108: 11.32 | H108: =G108*(1-VLOOKUP(F108,Konditionen!$B:$D,3,0)) -> 11.32
A109: Montagezubehör | B109: AFV2A | C109: AFV2A40 | D109: Rohrflansch AF 40 V2A 400 mm | F109: 14.MS | G109: 12.04 | H109: =G109*(1-VLOOKUP(F109,Konditionen!$B:$D,3,0)) -> 12.04
A110: Montagezubehör | B110: AFV2A | C110: AFV2A45 | D110: Rohrflansch AF 45 V2A 450 mm | F110: 14.MS | G110: 13.11 | H110: =G110*(1-VLOOKUP(F110,Konditionen!$B:$D,3,0)) -> 13.11
A111: Montagezubehör | B111: AFV2A | C111: AFV2A50 | D111: Rohrflansch AF 50 V2A 500 mm | F111: 14.MS | G111: 22.05 | H111: =G111*(1-VLOOKUP(F111,Konditionen!$B:$D,3,0)) -> 22.05
A112: Montagezubehör | B112: AFV2A | C112: AFV2A56 | D112: Rohrflansch AF 56 V2A 560 mm | F112: 14.MS | G112: 24.69 | H112: =G112*(1-VLOOKUP(F112,Konditionen!$B:$D,3,0)) -> 24.69
A113: Montagezubehör | B113: AFV2A | C113: AFV2A60 | D113: Rohrflansch AF 60 V2A 600 mm | F113: 14.MS | G113: 26.23 | H113: =G113*(1-VLOOKUP(F113,Konditionen!$B:$D,3,0)) -> 26.23
A114: Montagezubehör | B114: AFV2A | C114: AFV2A63 | D114: Rohrflansch AF 63 V2A 630 mm | F114: 14.MS | G114: 27.43 | H114: =G114*(1-VLOOKUP(F114,Konditionen!$B:$D,3,0)) -> 27.43
A115: Montagezubehör | B115: AFV2A | C115: AFV2A71 | D115: Rohrflansch AF 71 V2A 710 mm | F115: 14.MS | G115: 30.4 | H115: =G115*(1-VLOOKUP(F115,Konditionen!$B:$D,3,0)) -> 30.4
A116: Montagezubehör | B116: AFV2A | C116: AFV2A80 | D116: Rohrflansch AF 80 V2A 800 mm | F116: 14.MS | G116: 34.58 | H116: =G116*(1-VLOOKUP(F116,Konditionen!$B:$D,3,0)) -> 34.58
A117: Montagezubehör | B117: AFV2A | C117: AFV2A90 | D117: Rohrflansch AF 90 V2A 900 mm | F117: 14.MS | G117: 38.16 | H117: =G117*(1-VLOOKUP(F117,Konditionen!$B:$D,3,0)) -> 38.16
A118: Montagezubehör | B118: AF | C118: AF100 | D118: Rohrflansch AF 100 verz 1000 mm | F118: 14.MS | G118: 15.69 | H118: =G118*(1-VLOOKUP(F118,Konditionen!$B:$D,3,0)) -> 15.69
A119: Montagezubehör | B119: AF | C119: AF112 | D119: Rohrflansch AF 112 verz 1120 mm | F119: 14.MS | G119: 17.65 | H119: =G119*(1-VLOOKUP(F119,Konditionen!$B:$D,3,0)) -> 17.65
A120: Montagezubehör | B120: AF | C120: AF125 | D120: Rohrflansch AF 125 verz 1250 mm | F120: 14.MS | G120: 19.07 | H120: =G120*(1-VLOOKUP(F120,Konditionen!$B:$D,3,0)) -> 19.07
A121: Montagezubehör | B121: AF | C121: AF140 | D121: Rohrflansch AF 140 verz 1400 mm | F121: 14.MS | G121: 21.46 | H121: =G121*(1-VLOOKUP(F121,Konditionen!$B:$D,3,0)) -> 21.46
A122: Montagezubehör | B122: AF | C122: AF160 | D122: Rohrflansch AF 160 verz 1600 mm | F122: 14.MS | G122: 23.96 | H122: =G122*(1-VLOOKUP(F122,Konditionen!$B:$D,3,0)) -> 23.96
A123: Montagezubehör | B123: AF | C123: AF20 | D123: Rohrflansch AF 20 verz 200 mm | F123: 14.MS | G123: 2.25 | H123: =G123*(1-VLOOKUP(F123,Konditionen!$B:$D,3,0)) -> 2.25
A124: Montagezubehör | B124: AF | C124: AF22 | D124: Rohrflansch AF 22 verz 224 mm | F124: 14.MS | G124: 2.38 | H124: =G124*(1-VLOOKUP(F124,Konditionen!$B:$D,3,0)) -> 2.38
A125: Montagezubehör | B125: AF | C125: AF25 | D125: Rohrflansch AF 25 verz 250 mm | F125: 14.MS | G125: 2.47 | H125: =G125*(1-VLOOKUP(F125,Konditionen!$B:$D,3,0)) -> 2.47
A126: Montagezubehör | B126: AF | C126: AF28 | D126: Rohrflansch AF 28 verz 280 mm | F126: 14.MS | G126: 2.61 | H126: =G126*(1-VLOOKUP(F126,Konditionen!$B:$D,3,0)) -> 2.61
A127: Montagezubehör | B127: AF | C127: AF30 | D127: Rohrflansch AF 30 verz 300 mm | F127: 14.MS | G127: 2.64 | H127: =G127*(1-VLOOKUP(F127,Konditionen!$B:$D,3,0)) -> 2.64
A128: Montagezubehör | B128: AF | C128: AF31 | D128: Rohrflansch AF 31 verz 315 mm | F128: 14.MS | G128: 2.75 | H128: =G128*(1-VLOOKUP(F128,Konditionen!$B:$D,3,0)) -> 2.75
A129: Montagezubehör | B129: AF | C129: AF35 | D129: Rohrflansch AF 35 verz 355 mm | F129: 14.MS | G129: 3.05 | H129: =G129*(1-VLOOKUP(F129,Konditionen!$B:$D,3,0)) -> 3.05
A130: Montagezubehör | B130: AF | C130: AF40 | D130: Rohrflansch AF 40 verz 400 mm | F130: 14.MS | G130: 3.21 | H130: =G130*(1-VLOOKUP(F130,Konditionen!$B:$D,3,0)) -> 3.21
A131: Montagezubehör | B131: AF | C131: AF45 | D131: Rohrflansch AF 45 verz 450 mm | F131: 14.MS | G131: 3.34 | H131: =G131*(1-VLOOKUP(F131,Konditionen!$B:$D,3,0)) -> 3.34
A132: Montagezubehör | B132: AF | C132: AF50 | D132: Rohrflansch AF 50 verz 500 mm | F132: 14.MS | G132: 5.18 | H132: =G132*(1-VLOOKUP(F132,Konditionen!$B:$D,3,0)) -> 5.18
A133: Montagezubehör | B133: AF | C133: AF56 | D133: Rohrflansch AF 56 verz 560 mm | F133: 14.MS | G133: 5.79 | H133: =G133*(1-VLOOKUP(F133,Konditionen!$B:$D,3,0)) -> 5.79
A134: Montagezubehör | B134: AF | C134: AF60 | D134: Rohrflansch AF 60 verz 600 mm | F134: 14.MS | G134: 6.45 | H134: =G134*(1-VLOOKUP(F134,Konditionen!$B:$D,3,0)) -> 6.45
A135: Montagezubehör | B135: AF | C135: AF63 | D135: Rohrflansch AF 63 verz 630 mm | F135: 14.MS | G135: 6.55 | H135: =G135*(1-VLOOKUP(F135,Konditionen!$B:$D,3,0)) -> 6.55
A136: Montagezubehör | B136: AF | C136: AF71 | D136: Rohrflansch AF 71 verz 710 mm | F136: 14.MS | G136: 6.68 | H136: =G136*(1-VLOOKUP(F136,Konditionen!$B:$D,3,0)) -> 6.68
A137: Montagezubehör | B137: AF | C137: AF80 | D137: Rohrflansch AF 80 verz 800 mm | F137: 14.MS | G137: 7.38 | H137: =G137*(1-VLOOKUP(F137,Konditionen!$B:$D,3,0)) -> 7.38
A138: Montagezubehör | B138: AF | C138: AF90 | D138: Rohrflansch AF 90 verz 900 mm | F138: 14.MS | G138: 8.23 | H138: =G138*(1-VLOOKUP(F138,Konditionen!$B:$D,3,0)) -> 8.23
A139: Rohre und Formteile | B139: AGIS | C139: AGIS100224 | D139: Abdeckung AGIS 100.224 | E139: für isoliertes Rohr | F139: 53 | G139: 100.96 | H139: =G139*(1-VLOOKUP(F139,Konditionen!$B:$D,3,0)) -> 100.96
A140: Rohre und Formteile | B140: AGIS | C140: AGIS125250 | D140: Abdeckung AGIS 125.250 | E140: für isoliertes Rohr | F140: 53 | G140: 102.12 | H140: =G140*(1-VLOOKUP(F140,Konditionen!$B:$D,3,0)) -> 102.12
A141: Rohre und Formteile | B141: AGIS | C141: AGIS160280 | D141: Abdeckung AGIS 160.280 | E141: für isoliertes Rohr | F141: 53 | G141: 102.12 | H141: =G141*(1-VLOOKUP(F141,Konditionen!$B:$D,3,0)) -> 102.12
A142: Rohre und Formteile | B142: AGIS | C142: AGIS200315 | D142: Abdeckung AGIS 200.315 | E142: für isoliertes Rohr | F142: 53 | G142: 104.96 | H142: =G142*(1-VLOOKUP(F142,Konditionen!$B:$D,3,0)) -> 104.96
A143: Rohre und Formteile | B143: AGIS | C143: AGIS250315 | D143: Abdeckung AGIS 250.315 | E143: für isoliertes Rohr | F143: 53 | G143: 152.08 | H143: =G143*(1-VLOOKUP(F143,Konditionen!$B:$D,3,0)) -> 152.08
A144: Rohre und Formteile | B144: AGIS | C144: AGIS250355 | D144: Abdeckung AGIS 250.355 | E144: für isoliertes Rohr | F144: 53 | G144: 152.08 | H144: =G144*(1-VLOOKUP(F144,Konditionen!$B:$D,3,0)) -> 152.08
A145: Rohre und Formteile | B145: AGIS | C145: AGIS250400 | D145: Abdeckung AGIS 250.400 | E145: für isoliertes Rohr | F145: 53 | G145: 152.08 | H145: =G145*(1-VLOOKUP(F145,Konditionen!$B:$D,3,0)) -> 152.08
A146: Rohre und Formteile | B146: AGIS | C146: AGIS315400 | D146: Abdeckung AGIS 315.400 | E146: für isoliertes Rohr | F146: 53 | G146: 152.08 | H146: =G146*(1-VLOOKUP(F146,Konditionen!$B:$D,3,0)) -> 152.08
A147: Rohre und Formteile | B147: AGIS | C147: AGIS315450 | D147: Abdeckung AGIS 315.450 | E147: für isoliertes Rohr | F147: 53 | G147: 159.32 | H147: =G147*(1-VLOOKUP(F147,Konditionen!$B:$D,3,0)) -> 159.32
A148: Rohre und Formteile | B148: AGIS | C148: AGIS315500 | D148: Abdeckung AGIS 315.500 | E148: für isoliertes Rohr | F148: 53 | G148: 162.68 | H148: =G148*(1-VLOOKUP(F148,Konditionen!$B:$D,3,0)) -> 162.68
A149: Rohre und Formteile | B149: AGIS | C149: AGIS355500 | D149: Abdeckung AGIS 355.500 | E149: für isoliertes Rohr | F149: 53 | G149: 166.04 | H149: =G149*(1-VLOOKUP(F149,Konditionen!$B:$D,3,0)) -> 166.04
A150: Rohre und Formteile | B150: AGIS | C150: AGIS400500 | D150: Abdeckung AGIS 400.500 | E150: für isoliertes Rohr | F150: 53 | G150: 166.04 | H150: =G150*(1-VLOOKUP(F150,Konditionen!$B:$D,3,0)) -> 166.04
A151: Rohre und Formteile | B151: AGIS | C151: AGIS400560 | D151: Abdeckung AGIS 400.560 | E151: für isoliertes Rohr | F151: 53 | G151: 187.45 | H151: =G151*(1-VLOOKUP(F151,Konditionen!$B:$D,3,0)) -> 187.45
A152: Rohre und Formteile | B152: AGIS | C152: AGIS400630 | D152: Abdeckung AGIS 400.630 | E152: für isoliertes Rohr | F152: 53 | G152: 210.96 | H152: =G152*(1-VLOOKUP(F152,Konditionen!$B:$D,3,0)) -> 210.96
A153: Rohre und Formteile | B153: AGIS | C153: AGIS450630 | D153: Abdeckung AGIS 450.630 | E153: für isoliertes Rohr | F153: 53 | G153: 237.3 | H153: =G153*(1-VLOOKUP(F153,Konditionen!$B:$D,3,0)) -> 237.3
A154: Rohre und Formteile | B154: AGIS | C154: AGIS500630 | D154: Abdeckung AGIS 500.630 | E154: für isoliertes Rohr | F154: 53 | G154: 263.65 | H154: =G154*(1-VLOOKUP(F154,Konditionen!$B:$D,3,0)) -> 263.65
A155: Rohre und Formteile | B155: AGIS | C155: AGIS500710 | D155: Abdeckung AGIS 500.710 | E155: für isoliertes Rohr | F155: 53 | G155: 295.14 | H155: =G155*(1-VLOOKUP(F155,Konditionen!$B:$D,3,0)) -> 295.14
A156: Rohre und Formteile | B156: AGIS | C156: AGIS630800 | D156: Abdeckung AGIS 630.800 | E156: für isoliertes Rohr | F156: 53 | G156: 349.5 | H156: =G156*(1-VLOOKUP(F156,Konditionen!$B:$D,3,0)) -> 349.5
A157: Rohre und Formteile | B157: AGUV2A | C157: AGUV2A100 | D157: Ausblasstutzen AGU V2A 100 | E157: Edelstahl W,Nr. 1.4301 | F157: 60 | G157: 93.41 | H157: =G157*(1-VLOOKUP(F157,Konditionen!$B:$D,3,0)) -> 93.41
A158: Rohre und Formteile | B158: AGUV2A | C158: AGUV2A112 | D158: Ausblasstutzen AGU V2A 112 | E158: Edelstahl W.Nr. 1.4301 | F158: 60 | G158: 95.67 | H158: =G158*(1-VLOOKUP(F158,Konditionen!$B:$D,3,0)) -> 95.67
A159: Rohre und Formteile | B159: AGUV2A | C159: AGUV2A125 | D159: Ausblasstutzeh AGU V2A 125 | E159: Edelstahl W.Nr. 1.4301 | F159: 60 | G159: 95.67 | H159: =G159*(1-VLOOKUP(F159,Konditionen!$B:$D,3,0)) -> 95.67
A160: Rohre und Formteile | B160: AGUV2A | C160: AGUV2A140 | D160: Ausblasstutzen AGU V2A 140 | E160: Edelstahl W.Nr. 1.4301 | F160: 60 | G160: 116.24 | H160: =G160*(1-VLOOKUP(F160,Konditionen!$B:$D,3,0)) -> 116.24
A161: Rohre und Formteile | B161: AGUV2A | C161: AGUV2A150 | D161: Ausblasstutzen AGU V2A 150 | E161: Edelstahl W.Nr. 1.4301 | F161: 60 | G161: 116.24 | H161: =G161*(1-VLOOKUP(F161,Konditionen!$B:$D,3,0)) -> 116.24
A162: Rohre und Formteile | B162: AGUV2A | C162: AGUV2A160 | D162: Ausblasstutzen AGU V2A 160 | E162: Edelstahl W.Nr. 1.4301 | F162: 60 | G162: 116.24 | H162: =G162*(1-VLOOKUP(F162,Konditionen!$B:$D,3,0)) -> 116.24
A163: Rohre und Formteile | B163: AGUV2A | C163: AGUV2A180 | D163: Ausblasstutzen AGU V2A 180 | E163: Edelstahl W.Nr. 1.4301 | F163: 60 | G163: 124.27 | H163: =G163*(1-VLOOKUP(F163,Konditionen!$B:$D,3,0)) -> 124.27
A164: Rohre und Formteile | B164: AGUV2A | C164: AGUV2A200 | D164: Ausblasstutzen AGU V2A 200 | E164: Edelstahl W.Nr. 1.4301 | F164: 60 | G164: 124.27 | H164: =G164*(1-VLOOKUP(F164,Konditionen!$B:$D,3,0)) -> 124.27
A165: Rohre und Formteile | B165: AGUV2A | C165: AGUV2A224 | D165: Ausblasstutzen AGU V2A 224 | E165: Edelstahl W.Nr. 1.4301 | F165: 60 | G165: 149.98 | H165: =G165*(1-VLOOKUP(F165,Konditionen!$B:$D,3,0)) -> 149.98
A166: Rohre und Formteile | B166: AGUV2A | C166: AGUV2A250 | D166: Ausblasstutzen AGU V2A 250 | E166: Edelstahl W.Nr. 1.4301 | F166: 60 | G166: 149.98 | H166: =G166*(1-VLOOKUP(F166,Konditionen!$B:$D,3,0)) -> 149.98
A167: Rohre und Formteile | B167: AGUV2A | C167: AGUV2A280 | D167: Ausblasstutzen AGU V2A 280 | E167: Edelstahl W.Nr. 1.4301 | F167: 60 | G167: 179.05 | H167: =G167*(1-VLOOKUP(F167,Konditionen!$B:$D,3,0)) -> 179.05
A168: Rohre und Formteile | B168: AGUV2A | C168: AGUV2A300 | D168: Ausblasstutzen AGU V2A 300 | E168: Edelstahl W.Nr. 1.4301 | F168: 60 | G168: 179.05 | H168: =G168*(1-VLOOKUP(F168,Konditionen!$B:$D,3,0)) -> 179.05
A169: Rohre und Formteile | B169: AGUV2A | C169: AGUV2A315 | D169: Ausblasstutzen AGU V2A 315 | E169: Edelstahl W.Nr. 1.4301 | F169: 60 | G169: 191.65 | H169: =G169*(1-VLOOKUP(F169,Konditionen!$B:$D,3,0)) -> 191.65
A170: Rohre und Formteile | B170: AGUV2A | C170: AGUV2A355 | D170: Ausblasstutzen AGU V2A 355 | E170: Edelstahl W.Nr. 1.4301 | F170: 60 | G170: 194.17 | H170: =G170*(1-VLOOKUP(F170,Konditionen!$B:$D,3,0)) -> 194.17
A171: Rohre und Formteile | B171: AGUV2A | C171: AGUV2A400 | D171: Ausblasstutzen AGU V2A 400 | E171: Edelstahl W.Nr. 1.4301 | F171: 60 | G171: 216.36 | H171: =G171*(1-VLOOKUP(F171,Konditionen!$B:$D,3,0)) -> 216.36
A172: Rohre und Formteile | B172: AGUV2A | C172: AGUV2A450 | D172: Ausblasstutzen AGU V2A 450 | E172: Edelstahl W.Nr. 1.4301 | F172: 60 | G172: 246.28 | H172: =G172*(1-VLOOKUP(F172,Konditionen!$B:$D,3,0)) -> 246.28
A173: Rohre und Formteile | B173: AGUV2A | C173: AGUV2A500 | D173: Ausblasstutzen AGU V2A 500 | E173: Edelstahl W.Nr. 1.4301 | F173: 60 | G173: 266.95 | H173: =G173*(1-VLOOKUP(F173,Konditionen!$B:$D,3,0)) -> 266.95
A174: Rohre und Formteile | B174: AGUV2A | C174: AGUV2A560 | D174: Ausblasstutzen AGU V2A 560 | E174: Edelstahl W.Nr. 1.4301 | F174: 60 | G174: 428.33 | H174: =G174*(1-VLOOKUP(F174,Konditionen!$B:$D,3,0)) -> 428.33
A175: Rohre und Formteile | B175: AGUV2A | C175: AGUV2A600 | D175: Ausblasstutzen AGU V2A 600 | E175: Edelstahl W.Nr. 1.4301 | F175: 60 | G175: 466.91 | H175: =G175*(1-VLOOKUP(F175,Konditionen!$B:$D,3,0)) -> 466.91
A176: Rohre und Formteile | B176: AGUV2A | C176: AGUV2A630 | D176: Ausblasstutzen AGU V2A 630 | E176: Edelstahl W.Nr. 1.4301 | F176: 60 | G176: 494.98 | H176: =G176*(1-VLOOKUP(F176,Konditionen!$B:$D,3,0)) -> 494.98
A177: Rohre und Formteile | B177: AGUV2A | C177: AGUV2A710 | D177: Ausblasstutzen AGU V2A 710 | E177: Edelstahl W.Nr. 1.4301 | F177: 60 | G177: 588.07 | H177: =G177*(1-VLOOKUP(F177,Konditionen!$B:$D,3,0)) -> 588.07
A178: Rohre und Formteile | B178: AGUV2A | C178: AGUV2A800 | D178: Ausblasstutzen AGU V2A 800 | E178: Edelstahl W.Nr. 1.4301 | F178: 60 | G178: 674.45 | H178: =G178*(1-VLOOKUP(F178,Konditionen!$B:$D,3,0)) -> 674.45
A179: Rohre und Formteile | B179: AGUV2A | C179: AGUV2A900 | D179: Ausblasstutzen AGU V2A 900 | E179: Edelstahl W.Nr. 1.4301 | F179: 60 | G179: 796.42 | H179: =G179*(1-VLOOKUP(F179,Konditionen!$B:$D,3,0)) -> 796.42
A180: Rohre und Formteile | B180: AGU | C180: AGU100 | D180: Ausblasstutzen AGU 100 | F180: 53 | G180: 21.93 | H180: =G180*(1-VLOOKUP(F180,Konditionen!$B:$D,3,0)) -> 21.93
A181: Rohre und Formteile | B181: AGU | C181: AGU1000 | D181: Ausblasstutzen AGU 1000 | F181: 53 | G181: 153.44 | H181: =G181*(1-VLOOKUP(F181,Konditionen!$B:$D,3,0)) -> 153.44
A182: Rohre und Formteile | B182: AGU | C182: AGU112 | D182: Ausblasstutzen AGU 112 | F182: 53 | G182: 28.34 | H182: =G182*(1-VLOOKUP(F182,Konditionen!$B:$D,3,0)) -> 28.34
A183: Rohre und Formteile | B183: AGU | C183: AGU1120 | D183: Ausblasstutzen AGU 1120 | F183: 53 | G183: 177.8 | H183: =G183*(1-VLOOKUP(F183,Konditionen!$B:$D,3,0)) -> 177.8
A184: Rohre und Formteile | B184: AGU | C184: AGU125 | D184: Ausblasstutzen AGU 125 | F184: 53 | G184: 28.34 | H184: =G184*(1-VLOOKUP(F184,Konditionen!$B:$D,3,0)) -> 28.34
A185: Rohre und Formteile | B185: AGU | C185: AGU1250 | D185: Ausblasstutzen AGU 1250 | F185: 53 | G185: 200.57 | H185: =G185*(1-VLOOKUP(F185,Konditionen!$B:$D,3,0)) -> 200.57
A186: Rohre und Formteile | B186: AGU | C186: AGU140 | D186: Ausblasstutzen AGU 140 | F186: 53 | G186: 35.16 | H186: =G186*(1-VLOOKUP(F186,Konditionen!$B:$D,3,0)) -> 35.16
A187: Rohre und Formteile | B187: AGU | C187: AGU150 | D187: Ausblasstutzen AGU 150 | F187: 53 | G187: 35.16 | H187: =G187*(1-VLOOKUP(F187,Konditionen!$B:$D,3,0)) -> 35.16
A188: Rohre und Formteile | B188: AGU | C188: AGU160 | D188: Ausblasstutzen AGU 160 | F188: 53 | G188: 35.16 | H188: =G188*(1-VLOOKUP(F188,Konditionen!$B:$D,3,0)) -> 35.16
A189: Rohre und Formteile | B189: AGU | C189: AGU180 | D189: Ausblasstutzen AGU 180 | F189: 53 | G189: 39.15 | H189: =G189*(1-VLOOKUP(F189,Konditionen!$B:$D,3,0)) -> 39.15
A190: Rohre und Formteile | B190: AGU | C190: AGU200 | D190: Ausblasstutzen AGU 200 | F190: 53 | G190: 39.15 | H190: =G190*(1-VLOOKUP(F190,Konditionen!$B:$D,3,0)) -> 39.15
A191: Rohre und Formteile | B191: AGU | C191: AGU224 | D191: Ausblasstutzen AGU 224 | F191: 53 | G191: 44.19 | H191: =G191*(1-VLOOKUP(F191,Konditionen!$B:$D,3,0)) -> 44.19
A192: Rohre und Formteile | B192: AGU | C192: AGU250 | D192: Ausblasstutzen AGU 250 | F192: 53 | G192: 44.19 | H192: =G192*(1-VLOOKUP(F192,Konditionen!$B:$D,3,0)) -> 44.19
A193: Rohre und Formteile | B193: AGU | C193: AGU280 | D193: Ausblasstutzen AGU 280 | F193: 53 | G193: 50.06 | H193: =G193*(1-VLOOKUP(F193,Konditionen!$B:$D,3,0)) -> 50.06
A194: Rohre und Formteile | B194: AGU | C194: AGU300 | D194: Ausblasstutzen AGU 300 | F194: 53 | G194: 50.06 | H194: =G194*(1-VLOOKUP(F194,Konditionen!$B:$D,3,0)) -> 50.06
A195: Rohre und Formteile | B195: AGU | C195: AGU315 | D195: Ausblasstutzen AGU 315 | F195: 53 | G195: 53.52 | H195: =G195*(1-VLOOKUP(F195,Konditionen!$B:$D,3,0)) -> 53.52
A196: Rohre und Formteile | B196: AGU | C196: AGU355 | D196: Ausblasstutzen AGU 355 | F196: 53 | G196: 58.67 | H196: =G196*(1-VLOOKUP(F196,Konditionen!$B:$D,3,0)) -> 58.67
A197: Rohre und Formteile | B197: AGU | C197: AGU400 | D197: Ausblasstutzen AGU 400 | F197: 53 | G197: 63.5 | H197: =G197*(1-VLOOKUP(F197,Konditionen!$B:$D,3,0)) -> 63.5
A198: Rohre und Formteile | B198: AGU | C198: AGU450 | D198: Ausblasstutzen AGU 450 | F198: 53 | G198: 68.32 | H198: =G198*(1-VLOOKUP(F198,Konditionen!$B:$D,3,0)) -> 68.32
A199: Rohre und Formteile | B199: AGU | C199: AGU500 | D199: Ausblasstutzen AGU 500 | F199: 53 | G199: 75.67 | H199: =G199*(1-VLOOKUP(F199,Konditionen!$B:$D,3,0)) -> 75.67
A200: Rohre und Formteile | B200: AGU | C200: AGU560 | D200: Ausblasstutzen AGU 560 | F200: 53 | G200: 85.44 | H200: =G200*(1-VLOOKUP(F200,Konditionen!$B:$D,3,0)) -> 85.44
A201: Rohre und Formteile | B201: AGU | C201: AGU600 | D201: Ausblasstutzen AGU 600 | F201: 53 | G201: 94.25 | H201: =G201*(1-VLOOKUP(F201,Konditionen!$B:$D,3,0)) -> 94.25
A202: Rohre und Formteile | B202: AGU | C202: AGU630 | D202: Ausblasstutzen AGU 630 | F202: 53 | G202: 101.7 | H202: =G202*(1-VLOOKUP(F202,Konditionen!$B:$D,3,0)) -> 101.7
A203: Rohre und Formteile | B203: AGU | C203: AGU710 | D203: Ausblasstutzen AGU 710 | F203: 53 | G203: 104.96 | H203: =G203*(1-VLOOKUP(F203,Konditionen!$B:$D,3,0)) -> 104.96
A204: Rohre und Formteile | B204: AGU | C204: AGU80 | D204: Ausblasstutzen AGU 80 | F204: 53 | G204: 21.93 | H204: =G204*(1-VLOOKUP(F204,Konditionen!$B:$D,3,0)) -> 21.93
A205: Rohre und Formteile | B205: AGU | C205: AGU800 | D205: Ausblasstutzen AGU 800 | F205: 53 | G205: 115.66 | H205: =G205*(1-VLOOKUP(F205,Konditionen!$B:$D,3,0)) -> 115.66
A206: Rohre und Formteile | B206: AGU | C206: AGU900 | D206: Ausblasstutzen AGU 900 | F206: 53 | G206: 127.94 | H206: =G206*(1-VLOOKUP(F206,Konditionen!$B:$D,3,0)) -> 127.94
... 4294 more rows

Sheet Bestellliste
C3: Bestellliste
A5: Datum; | B5: =NOW() -> 2017-04-25T15:16:18.550
A6: Firma/Kundennr: | B6: 0 | C6: Lieferadresse: | F6: Lindab GmbH
A7: Ansprechpartner: | B7: =Konditionen!D53 -> 0 | F7: Carl-Benz-Weg 18, 22941 Bargteheide
A8: Str.: | B8: =Konditionen!D54 -> 0 | F8: Tel. 04532-28590
A9: Ort: | B9: =Konditionen!D55 -> 0 | F9: Fax: 04532-5666
A10: Tel.: | B10: =Konditionen!D56 -> 0 | F10: email: sales@lindab.de
A11: Fax: | B11: =Konditionen!D57 -> 0
A13: Position | B13: Artikelnummer | C13: Beschreibung 1 | D13: Beschreibung 2 | E13: Preisgruppe | F13: Preis brutto | G13: Preis netto | H13: Stück | I13: gesamt netto
